lending/lending_fUSD_20250425
["ID","MTS","AMOUNT","RATE_DAILY","PERIOD"]
[358930563,1745553051977,-1234.25,0.000429,2]
[358930564,1745553051987,-410.87,0.000429,2]
[358930565,1745553051998,-2250.09,0.000429,2]
[358930566,1745553052008,-655.08,0.000429,60]
[358930567,1745553052019,-159.04017274,0.00042959,2]
[358930568,1745553052030,-400.0,0.0004297,3]
[358930569,1745553052041,-404.74766078,0.0004297,3]
[358930570,1745553052052,-1325.06045152,0.00042975,15]
[358930571,1745553052061,-500.0,0.00042992,30]
[358930572,1745553052071,-68321.4389098,0.00042993,2]
[358930573,1745553052080,-151.0,0.00042993,14]
[358930574,1745553052090,-151.0,0.00042993,14]
[358930575,1745553052099,-151.0,0.00042993,14]
[358930576,1745553052108,-151.0,0.00042993,14]
[358930577,1745553052118,-151.0,0.00042993,14]
[358930578,1745553052127,-151.0,0.00042993,14]
[358930579,1745553052137,-616.452898,0.00042993,14]
[358930580,1745553052146,-616.4529,0.00042993,14]
[358930581,1745553052156,-200.0,0.00043,70]
[358930582,1745553052165,-200.0,0.00043,70]
[358930583,1745553052174,-154.1319778,0.00043,120]
[358930584,1745553052437,-2000.0,0.00043,2]
[358930585,1745553052447,-1000.0,0.00043014,14]
[358930586,1745553052456,-730.0,0.00043014,14]
[358930587,1745553052466,-177.0,0.00043151,90]
[358930588,1745553052476,-400.0,0.0004337,3]
[358930589,1745553052486,-403.62790648,0.0004337,3]
[358930590,1745553052496,-204.25,0.00043417,2]
[358930591,1745553052506,-152.0,0.00043421,10]
[358930592,1745553052517,-655.08,0.000436,60]
[358930593,1745553052529,-279.77,0.000436,120]
[358930594,1745553052539,-261.94,0.000436,120]
[358930595,1745553052549,-551.53792963,0.00043659,18]
[358930596,1745553052559,-150.0,0.00043679,120]
[358930597,1745553052570,-234.06,0.00043688,2]
[358930598,1745553052580,-210.47352606,0.000437,120]
[358930599,1745553052589,-216.14,0.000437,36]
[358930600,1745553052599,-216.14,0.000437,36]
[358930601,1745553052609,-216.14,0.000437,36]
[358930602,1745553052619,-216.14,0.000437,36]
[358930603,1745553052629,-216.14,0.000437,36]
[358930604,1745553052639,-216.14,0.000437,36]
[358930605,1745553052649,-216.14,0.000437,36]
[358930606,1745553052659,-216.14,0.000437,36]
[358930607,1745553052670,-216.14,0.000437,36]
[358930608,1745553052680,-216.14,0.000437,36]
[358930609,1745553052690,-216.14,0.000437,36]
[358930610,1745553052699,-216.14,0.000437,36]
[358930611,1745553052708,-216.14,0.000437,36]
[358930612,1745553052717,-216.14,0.000437,36]
[358930613,1745553052726,-216.14,0.000437,36]
[358930614,1745553052736,-216.14,0.000437,36]
[358930615,1745553052745,-216.14,0.000437,36]
[358930616,1745553052754,-216.14,0.000437,36]
[358930617,1745553052765,-216.14,0.000437,36]
[358930618,1745553052775,-216.14,0.000437,36]
[358930619,1745553052785,-216.14,0.000437,36]
[358930620,1745553052795,-216.14,0.000437,36]
[358930621,1745553052804,-216.14,0.000437,36]
[358930622,1745553052814,-216.14,0.000437,36]
[358930623,1745553052823,-8501.62871021,0.0004383,2]
[358930624,1745553052833,-215.397559,0.0004383,14]
[358930625,1745553052844,-215.397565,0.0004383,14]
[358930626,1745553052854,-1330.55,0.00043835,120]
[358930627,1745553052866,-150.47,0.00043836,2]
[358930628,1745553052877,-150.0,0.00043836,10]
[358930629,1745553052886,-682.28213089,0.00044,2]
[358930630,1745553052896,-200.0,0.00044,73]
[358930631,1745553052905,-200.0,0.00044,73]
[358930632,1745553052915,-200.0,0.00044,120]
[358930633,1745553052925,-342.29499295,0.00044,2]
[358930634,1745553052935,-572.0,0.00044,90]
[358930635,1745553052945,-2000.0,0.00044065,8]
[358930636,1745553052955,-1234.25,0.000441,2]
[358930637,1745553052966,-2250.09,0.000441,2]
[358930638,1745553052975,-572.0,0.0004411,90]
[358930639,1745553052985,-152.0,0.00044111,11]
[358930640,1745553052995,-655.08,0.000443,60]
[358930641,1745553053004,-204.25,0.00044373,2]
[358930642,1745553053014,-165.14902427,0.00044384,10]
[358930643,1745553053024,-572.0,0.00044384,90]
[358930644,1745553053034,-3600.0,0.000444,2]
[358930645,1745553053044,-150.0,0.00044459,120]
[358930646,1745553053053,-185.69335368,0.00044639,16]
[358930647,1745553053062,-572.0,0.00044658,90]
[358930648,1745553053073,-551.53792963,0.00044797,18]
[358930649,1745553053084,-152.0,0.00044802,12]
[358930650,1745553053094,-559.21,0.00044854,120]
[358930651,1745553053104,-1234.25,0.000449,2]
[358930652,1745553053114,-1234.25,0.000449,2]
[358930653,1745553053124,-2250.09,0.000449,2]
[358930654,1745553053134,-2250.09,0.000449,2]
[358930655,1745553053144,-246.990033,0.000449,14]
[358930656,1745553053154,-246.990033,0.000449,14]
[358930657,1745553053164,-3000.0,0.000449,16]
[358930658,1745553053174,-151.0,0.00044901,14]
[358930659,1745553053183,-572.0,0.00044932,90]
[358930660,1745553053194,-2974.63586443,0.00044959,17]
[358930661,1745553053206,-20000.0,0.00045,2]
[358930662,1745553053216,-964.0071434,0.00045,2]
[358930663,1745553053226,-200.0,0.00045,76]
[358930664,1745553053236,-200.0,0.00045,76]
[358930665,1745553053246,-1000.0,0.00045,120]
[358930666,1745553053255,-4530.34006981,0.00045,4]
[358930667,1745553053264,-1000.0,0.00045,120]
[358930668,1745553053276,-263.04,0.00045,14]
[358930669,1745553053285,-341.0,0.00045,30]
[358930670,1745553053295,-500.0,0.00045,120]
[358930671,1745553053306,-411.1157142,0.00045,30]
[358930672,1745553053315,-216.14,0.000451,39]
[358930673,1745553053325,-216.14,0.000451,39]
[358930674,1745553053336,-216.14,0.000451,39]
[358930675,1745553053347,-216.14,0.000451,39]
[358930676,1745553053357,-216.14,0.000451,39]
[358930677,1745553053368,-216.14,0.000451,39]
[358930678,1745553053378,-216.14,0.000451,39]
[358930679,1745553053387,-216.14,0.000451,39]
[358930680,1745553053397,-216.14,0.000451,39]
[358930681,1745553053407,-216.14,0.000451,39]
[358930682,1745553053418,-216.14,0.000451,39]
[358930683,1745553053428,-216.14,0.000451,39]
[358930684,1745553053439,-216.14,0.000451,39]
[358930685,1745553053449,-216.14,0.000451,39]
[358930686,1745553053461,-216.14,0.000451,39]
[358930687,1745553053471,-216.14,0.000451,39]
[358930688,1745553053481,-216.14,0.000451,39]
[358930689,1745553053491,-216.14,0.000451,39]
[358930690,1745553053502,-216.14,0.000451,39]
[358930691,1745553053514,-216.14,0.000451,39]
[358930692,1745553053524,-216.14,0.000451,39]
[358930693,1745553053534,-216.14,0.000451,39]
[358930694,1745553053544,-216.14,0.000451,39]
[358930695,1745553053554,-216.14,0.000451,39]
[358930696,1745553053564,-190.31304971,0.000451,120]
[358930697,1745553053575,-1330.55,0.00045205,120]
[358930698,1745553053585,-161.56562961,0.0004526,7]
[358930699,1745553053595,-2009.329127,0.00045269,2]
[358930700,1745553053605,-143113.1546006,0.00045269,2]
[358930701,1745553053615,-5442.3499826,0.00045269,2]
[358930702,1745553053624,-2645.0965137,0.00045269,2]
[358930703,1745553053634,-151.0,0.0004527,14]
[358930704,1745553053643,-151.0,0.0004529,14]
[358930705,1745553053654,-5069.90381191,0.000453,5]
[358930706,1745553053668,-4327.4,0.000453,5]
[358930707,1745553053728,-3899.6,0.000453,5]
[358930708,1745553053820,-26769.08249561,0.000453,5]
[358930709,1745553053832,-6230.09793491,0.000453,5]
[358930710,1745553053845,-1781.2649874,0.000453,5]
[358930711,1745553053860,-104859.90580269,0.000453,5]
[358930712,1745553053872,-6177.18706618,0.000453,5]
[358930713,1745553053884,-30250.91070487,0.000453,5]
[358930714,1745553054830,-690.535018,0.00040101,14]
[358930715,1745553054840,-690.535018,0.0004012,14]
[358930716,1745553054852,-690.535018,0.0004013,14]
[358930717,1745553054862,-690.535018,0.00040263,14]
[358930718,1745553054872,-690.535018,0.00041945,14]
[358930719,1745553054881,-690.535018,0.00042415,14]
[358930720,1745553054892,-690.535018,0.00042555,14]
[358930721,1745553054902,-551.43864115,0.00042975,15]
[358930722,1745553054912,-96007.10041974,0.000453,5]
[358930723,1745553054922,-162.196155,0.000453,14]
[358930724,1745553054933,-151.0,0.000453,14]
[358930725,1745553054943,-246.990033,0.000453,14]
[358930726,1745553054954,-246.990026,0.000453,14]
[358930727,1745553054964,-5000.0,0.00045302,2]
[358930728,1745553054973,-179.0,0.00045308,90]
[358930729,1745553054983,-6071.2872733,0.00045321,2]
[358930730,1745553054993,-204.25,0.0004533,2]
[358930731,1745553055003,-66705.89370411,0.00045378,2]
[358930732,1745553055013,-1000.0,0.000454,120]
[358930733,1745553055023,-15729.37001273,0.00045444,2]
[358930734,1745553055033,-152.0,0.00045492,13]
[358930735,1745553055043,-2454.24,0.000455,14]
[358930736,1745553055053,-1224.6997771,0.000456,30]
[358930737,1745553055063,-2000.0,0.00045659,8]
[358930738,1745553055072,-489.8,0.00045679,7]
[358930739,1745553055082,-5000.0,0.00045679,7]
[358930740,1745553055092,-800.0,0.000458,30]
[358930741,1745553055102,-281.11,0.000458,120]
[358930742,1745553055112,-2000.0,0.000458,2]
[358930743,1745553055122,-1325.06045152,0.00045859,15]
[358930744,1745553055132,-151.0,0.0004587,14]
[358930745,1745553055141,-385.0,0.000459,3]
[358930746,1745553055151,-546.43188206,0.000459,119]
[358930747,1745553055161,-600.0,0.000459,16]
[358930748,1745553055171,-151.0,0.00045902,2]
[358930749,1745553055181,-244.31171554,0.00045902,2]
[358930750,1745553055191,-150.0,0.00045906,2]
[358930751,1745553055205,-150.0,0.00045906,2]
[358930752,1745553055215,-150.0,0.00045906,2]
[358930753,1745553055225,-1089.68534032,0.00045906,2]
[358930754,1745553055234,-1285.84089193,0.00045906,2]
[358930755,1745553055245,-2116.22202224,0.00045906,2]
[358930756,1745553055255,-11021.6040363,0.00045927,2]
[358930757,1745553055265,-955.839971,0.00045927,2]
[358930758,1745553055275,-14302.2850654,0.00045927,2]
[358930759,1745553055285,-551.53792963,0.00045934,19]
[358930760,1745553055294,-234.06,0.00045952,2]
[358930761,1745553055304,-150.0,0.00045958,3]
[358930762,1745553055314,-150.0,0.00045958,3]
[358930763,1745553055325,-1013.64078301,0.00045959,2]
[358930764,1745553055334,-920.39512824,0.00045959,3]
[358930765,1745553055344,-365.47481111,0.00045959,2]
[358930766,1745553055354,-2209.55640133,0.00045959,2]
[358930767,1745553055363,-284.21993329,0.00045959,2]
[358930768,1745553055373,-2054.71407909,0.00045959,3]
[358930769,1745553055383,-14802.78996216,0.00045959,2]
[358930770,1745553055392,-500.0,0.00045959,7]
[358930771,1745553055402,-1839.99532742,0.00045959,2]
[358930772,1745553055411,-217.16740543,0.00045959,7]
[358930773,1745553055422,-1119.61910372,0.00045959,2]
[358930774,1745553055431,-2557.68448043,0.00045959,2]
[358930775,1745553055441,-14089.92412711,0.00045959,2]
[358930776,1745553055450,-220.70939145,0.00045959,2]
[358930777,1745553055460,-20276.07069304,0.00045959,2]
[358930778,1745553055471,-8160.02725041,0.00045959,2]
[358930779,1745553055480,-1708.67625244,0.00045959,2]
[358930780,1745553055490,-1433.14010395,0.00045959,2]
[358930781,1745553055500,-203.08271259,0.00045959,2]
[358930782,1745553055510,-283.12438609,0.00045959,2]
[358930783,1745553055520,-5692.10920832,0.00045959,2]
[358930784,1745553055530,-752.89624108,0.00045959,2]
[358930785,1745553055539,-1014.89297982,0.00045959,2]
[358930786,1745553055549,-1108.97740335,0.00045959,2]
[358930787,1745553055558,-162.91,0.00045959,2]
[358930788,1745553055567,-161.95201167,0.00045959,2]
[358930789,1745553055577,-2176.3250351,0.00045959,2]
[358930790,1745553055586,-873.71260582,0.00045959,2]
[358930791,1745553055596,-150.0,0.00045959,2]
[358930792,1745553055605,-30000.0,0.00045959,2]
[358930793,1745553055615,-7493.02317522,0.00045959,2]
[358930794,1745553055625,-99827.43015844,0.00045959,2]
[358930795,1745553055635,-1727.92704013,0.00045959,2]
[358930796,1745553055644,-901.17263437,0.00045959,2]
[358930797,1745553055654,-306.0,0.00045959,2]
[358930798,1745553055663,-199964.19757017,0.00045959,2]
[358930799,1745553055674,-1000.0,0.00045959,2]
[358930800,1745553055683,-150.0,0.00045959,2]
[358930801,1745553055693,-150.0,0.00045959,2]
[358930802,1745553055703,-3930.64593861,0.00045959,2]
[358930803,1745553055712,-22818.15469577,0.00045959,2]
[358930804,1745553055722,-199.69509114,0.00045959,2]
[358930805,1745553055732,-2000.00000075,0.00045959,2]
[358930806,1745553055741,-316.92126536,0.00045959,10]
[358930807,1745553055750,-1004.77378501,0.00045959,10]
[358930808,1745553055760,-1025.00421984,0.00045959,2]
[358930809,1745553055769,-1095.0,0.00045959,120]
[358930810,1745553055778,-200.0,0.00045959,30]
[358930811,1745553055788,-200.0,0.00045959,30]
[358930812,1745553055798,-200.0,0.00045959,30]
[358930813,1745553055808,-200.0,0.00045959,30]
[358930814,1745553055820,-200.0,0.00045959,30]
[358930815,1745553055830,-200.0,0.00045959,30]
[358930816,1745553055842,-200.0,0.00045959,30]
[358930817,1745553055853,-200.0,0.00045959,30]
[358930818,1745553055864,-200.0,0.00045959,30]
[358930819,1745553055873,-200.0,0.00045959,30]
[358930820,1745553055882,-200.0,0.00045959,30]
[358930821,1745553055891,-200.0,0.00045959,30]
[358930822,1745553055900,-200.0,0.00045959,30]
[358930823,1745553055908,-200.0,0.00045959,30]
[358930824,1745553055918,-200.0,0.00045959,30]
[358930825,1745553055929,-200.0,0.00045959,30]
[358930826,1745553055939,-200.0,0.00045959,30]
[358930827,1745553055949,-200.0,0.00045959,30]
[358930828,1745553055962,-200.0,0.00045959,30]
[358930829,1745553055972,-200.0,0.00045959,30]
[358930830,1745553055982,-200.0,0.00045959,30]
[358930831,1745553055992,-1556.78296847,0.00045959,60]
[358930832,1745553056003,-1007.5719111,0.00045959,30]
[358930833,1745553056013,-311.21485428,0.00045959,120]
[358930834,1745553056023,-374.84897064,0.00045959,2]
[358930835,1745553056032,-2077.187371,0.00045959,30]
[358930836,1745553056042,-391.03547732,0.00045959,2]
[358930837,1745553056051,-201980.10276599,0.00045959,2]
[358930838,1745553056061,-182.89561039,0.00045959,30]
[358930839,1745553056071,-122168.20513597,0.00045959,2]
[358930840,1745553056080,-707.67477638,0.00045959,30]
[358930841,1745553056089,-1210.0,0.00045959,2]
[358930842,1745553056098,-501.02106772,0.00045959,120]
[358930843,1745553056107,-704.24436266,0.00045959,2]
[358930844,1745553056117,-1478.4147685,0.00045959,120]
[358930845,1745553056126,-362.65206509,0.00045959,2]
[358930846,1745553056135,-1048.7951607,0.00045959,120]
[358930847,1745553056144,-916.66965632,0.00045959,30]
[358930848,1745553056153,-348.77059043,0.00045959,2]
[358930849,1745553056432,-721.65471108,0.00045959,30]
[358930850,1745553056443,-762.66446964,0.00045959,2]
[358930851,1745553056453,-22680.49703977,0.00045959,2]
[358930852,1745553056463,-1522.87572211,0.00045959,2]
[358930853,1745553056473,-1030.92854914,0.00045959,2]
[358930854,1745553056483,-5191.61982702,0.00045959,2]
[358930855,1745553056492,-161.69627494,0.00045959,30]
[358930856,1745553056502,-2458.75818249,0.00045959,2]
[358930857,1745553056511,-2708.68434712,0.00045959,2]
[358930858,1745553056521,-215849.84923721,0.00045959,2]
[358930859,1745553056530,-151.50950842,0.00045959,2]
[358930860,1745553056540,-43993.08532646,0.00045959,2]
[358930861,1745553056550,-495.9358478,0.00045959,90]
[358930862,1745553056559,-249.4694075,0.00045959,2]
[358930863,1745553056569,-164.6419105,0.00045959,2]
[358930864,1745553056578,-3870.56646769,0.00045959,2]
[358930865,1745553056588,-1263.40664609,0.00045959,2]
[358930866,1745553056597,-211.80994205,0.00045959,60]
[358930867,1745553056607,-7730.62243353,0.00045959,2]
[358930868,1745553056617,-248.8710732,0.00045959,30]
[358930869,1745553056627,-682.00308945,0.00045959,120]
[358930870,1745553056636,-29079.93887991,0.00045959,2]
[358930871,1745553056646,-1042.86026863,0.00045959,2]
[358930872,1745553056656,-32025.18598736,0.00045959,2]
[358930873,1745553056666,-595.60045886,0.00045959,2]
[358930874,1745553056676,-14710.59358839,0.00045959,2]
[358930875,1745553056686,-193.42152217,0.00045959,60]
[358930876,1745553056695,-9246.36734406,0.00045959,2]
[358930877,1745553056705,-1313.37012597,0.00045959,2]
[358930878,1745553056714,-3423.46932032,0.00045959,2]
[358930879,1745553056724,-77093.61128742,0.00045959,2]
[358930880,1745553056734,-12848.86372875,0.00045959,2]
[358930881,1745553056743,-1922.73974566,0.00045959,2]
[358930882,1745553056753,-184.31440385,0.00045959,2]
[358930883,1745553056763,-5026.16131573,0.00045959,2]
[358930884,1745553056772,-643.0,0.00045959,2]
[358930885,1745553056782,-971.60453121,0.00045959,2]
[358930886,1745553056792,-8641.6344802,0.00045959,2]
[358930887,1745553056802,-1024.40987509,0.00045959,7]
[358930888,1745553056813,-25381.84791846,0.00045959,2]
[358930889,1745553056823,-573.99284371,0.00045959,2]
[358930890,1745553056833,-174.57988677,0.00045959,30]
[358930891,1745553056843,-1838.74573505,0.00045959,2]
[358930892,1745553056854,-3246.65949871,0.00045959,2]
[358930893,1745553056863,-154.6914517,0.00045959,2]
[358930894,1745553056873,-175.67942954,0.00045959,2]
[358930895,1745553056883,-1992.23109427,0.00045959,120]
[358930896,1745553056892,-329.64352483,0.00045959,120]
[358930897,1745553056902,-7093.66153787,0.00045959,2]
[358930898,1745553056911,-550.0,0.00045959,2]
[358930899,1745553056922,-1468.81589907,0.00045959,2]
[358930900,1745553056931,-1009.81414602,0.00045959,2]
[358930901,1745553056940,-804.49337173,0.00045959,2]
[358930902,1745553056949,-10716.90112229,0.00045959,2]
[358930903,1745553056959,-157504.20264078,0.00045959,2]
[358930904,1745553056969,-819.10697467,0.00045959,120]
[358930905,1745553056979,-3239.86641264,0.00045959,120]
[358930906,1745553056989,-379.72145764,0.00045959,30]
[358930907,1745553056999,-997.0,0.00045959,30]
[358930908,1745553057008,-823.25158604,0.00045959,120]
[358930909,1745553057019,-205.53944247,0.00045959,30]
[358930910,1745553057029,-1293.28249326,0.00045959,120]
[358930911,1745553057039,-312.91215193,0.00045959,120]
[358930912,1745553057048,-511.08606459,0.00045959,30]
[358930913,1745553057059,-499.999999,0.00045959,120]
[358930914,1745553057068,-269.2155424,0.00045959,30]
[358930915,1745553057078,-614.10330869,0.00045959,120]
[358930916,1745553057087,-236.38687372,0.00045959,30]
[358930917,1745553057097,-418.86126164,0.00045959,30]
[358930918,1745553057107,-328.88751677,0.00045959,120]
[358930919,1745553057116,-424.3273489,0.00045959,120]
[358930920,1745553057126,-296.80606272,0.00045959,30]
[358930921,1745553057136,-208.09989037,0.00045959,30]
[358930922,1745553057146,-1987.26024941,0.00045959,120]
[358930923,1745553057156,-721.53614041,0.00045959,120]
[358930924,1745553057166,-1759.59176217,0.00045959,120]
[358930925,1745553057175,-188.48398177,0.00045959,120]
[358930926,1745553057185,-756.4754945,0.00045959,120]
[358930927,1745553057196,-228.28542667,0.00045959,30]
[358930928,1745553057208,-964.81616986,0.00045959,120]
[358930929,1745553057218,-2000.16266135,0.00045959,30]
[358930930,1745553057228,-2000.0,0.00045959,120]
[358930931,1745553057239,-6000.01,0.00045959,30]
[358930932,1745553057251,-2756.19002271,0.00045959,120]
[358930933,1745553057260,-2301.13194882,0.00045959,120]
[358930934,1745553057270,-2330.80906166,0.00045959,120]
[358930935,1745553057282,-229.37005809,0.00045959,2]
[358930936,1745553057291,-174.07310597,0.00045959,2]
[358930937,1745553057301,-6000.0,0.00045959,2]
[358930938,1745553057310,-376.11458029,0.00045959,2]
[358930939,1745553057319,-1473.22463514,0.00045959,2]
[358930940,1745553057328,-1035.35699577,0.00045959,2]
[358930941,1745553057338,-564.20466414,0.00045959,2]
[358930942,1745553057347,-150.0,0.00045959,2]
[358930943,1745553057356,-7784.40838433,0.00045959,2]
[358930944,1745553057366,-627.47048257,0.00045959,2]
[358930945,1745553057375,-215.10192149,0.00045959,2]
[358930946,1745553057384,-157875.36523375,0.00045959,2]
[358930947,1745553057394,-154.0,0.00045959,120]
[358930948,1745553057404,-358.8,0.00045959,30]
[358930949,1745553057414,-163.85976654,0.00045959,60]
[358930950,1745553057423,-580.05860925,0.00045959,30]
[358930951,1745553057433,-5674.0,0.00045959,30]
[358930952,1745553057443,-1694.0,0.00045959,30]
[358930953,1745553057453,-2999.999991,0.00045959,120]
[358930954,1745553057463,-702.0,0.00045959,120]
[358930955,1745553057473,-847.0,0.00045959,30]
[358930956,1745553057482,-1911.0,0.00045959,120]
[358930957,1745553057491,-1071.0,0.00045959,30]
[358930958,1745553057501,-1071.0,0.00045959,30]
[358930959,1745553057510,-1071.0,0.00045959,30]
[358930960,1745553057520,-1071.0,0.00045959,30]
[358930961,1745553057529,-1071.0,0.00045959,30]
[358930962,1745553057538,-1071.0,0.00045959,30]
[358930963,1745553057547,-1071.0,0.00045959,30]
[358930964,1745553057557,-1071.0,0.00045959,30]
[358930965,1745553057567,-1071.0,0.00045959,30]
[358930966,1745553057576,-1071.0,0.00045959,30]
[358930967,1745553057586,-1067.13117052,0.00045959,30]
[358930968,1745553057595,-1071.0,0.00045959,30]
[358930969,1745553057605,-1002.2774465,0.00045959,30]
[358930970,1745553057614,-203.35211021,0.00045959,7]
[358930971,1745553057623,-1879.02391946,0.00045959,2]
[358930972,1745553057633,-370.87943294,0.00045959,120]
[358930973,1745553057642,-603.92726383,0.00045959,30]
[358930974,1745553057651,-425.0,0.00045959,120]
[358930975,1745553057660,-424.0,0.00045959,30]
[358930976,1745553057670,-3171.0483269,0.00045959,120]
[358930977,1745553057680,-207.3,0.00045959,30]
[358930978,1745553057689,-9946.56286023,0.00045959,2]
[358930979,1745553057699,-2755.47923672,0.00045959,7]
[358930980,1745553057708,-499.60195492,0.00045959,2]
[358930981,1745553057718,-200.0,0.00045959,30]
[358930982,1745553057728,-200.0,0.00045959,30]
[358930983,1745553057737,-200.0,0.00045959,30]
[358930984,1745553057747,-200.0,0.00045959,30]
[358930985,1745553057756,-200.0,0.00045959,30]
[358930986,1745553057765,-200.0,0.00045959,30]
[358930987,1745553057775,-5000.0,0.00045959,36]
[358930988,1745553057787,-172.5,0.00045959,30]
[358930989,1745553057797,-207.3,0.00045959,30]
[358930990,1745553057807,-358.799999,0.00045959,30]
[358930991,1745553057818,-200.0,0.00045959,30]
[358930992,1745553057829,-200.0,0.00045959,30]
[358930993,1745553057840,-200.0,0.00045959,30]
[358930994,1745553057851,-200.0,0.00045959,30]
[358930995,1745553057862,-200.0,0.00045959,30]
[358930996,1745553057873,-200.0,0.00045959,30]
[358930997,1745553057882,-200.0,0.00045959,30]
[358930998,1745553057891,-200.0,0.00045959,30]
[358930999,1745553057900,-200.0,0.00045959,30]
[358931000,1745553057910,-200.0,0.00045959,30]
[358931001,1745553057920,-200.0,0.00045959,30]
[358931002,1745553057932,-200.0,0.00045959,30]
[358931003,1745553057941,-200.0,0.00045959,30]
[358931004,1745553057950,-200.0,0.00045959,30]
[358931005,1745553057966,-200.0,0.00045959,30]
[358931006,1745553057976,-150.0,0.00045959,2]
[358931007,1745553057985,-1882.4363838,0.00045969,2]
[358931008,1745553057996,-134442.7842029,0.00045969,2]
[358931009,1745553058006,-9756.2212177,0.00045999,2]
[358931010,1745553058015,-1149.24,0.00045999,2]
[358931011,1745553058026,-50000.0,0.00046,10]
[358931012,1745553058037,-2007.55032201,0.00046,10]
[358931013,1745553058047,-50000.0,0.00046,26]
[358931014,1745553058056,-865.47215708,0.00046,2]
[358931015,1745553058067,-200.0,0.00046,79]
[358931016,1745553058077,-200.0,0.00046,79]
[358931017,1745553058087,-1000.0,0.00046,120]
[358931018,1745553058096,-200.0,0.00046,120]
[358931019,1745553058106,-572.0,0.00046027,90]
[358931020,1745553058115,-5126.7246896,0.00046148,2]
[358931021,1745553058125,-2491.6959855,0.00046148,2]
[358931022,1745553058135,-300.0,0.0004617,3]
[358931023,1745553058144,-400.0,0.0004617,3]
[358931024,1745553058154,-150.0,0.00046178,120]
[358931025,1745553058164,-150.0,0.00046179,3]
[358931026,1745553058173,-357810.62449979,0.0004618,7]
[358931027,1745553058183,-152.0,0.00046183,14]
[358931028,1745553058194,-5000.0,0.000462,14]
[358931029,1745553058206,-550.0,0.000462,6]
[358931030,1745553058217,-5000.0,0.000462,19]
[358931031,1745553058226,-150.0,0.00046253,3]
[358931032,1745553058236,-204.25,0.00046286,2]
[358931033,1745553058246,-222.13,0.00046301,2]
[358931034,1745553058259,-150.0,0.00046326,3]
[358931035,1745553058271,-388.88,0.000464,60]
[358931036,1745553058282,-150.0,0.000464,3]
[358931037,1745553058293,-150.0,0.00046474,3]
[358931038,1745553058302,-1000.0,0.000465,120]
[358931039,1745553058313,-216.14,0.000465,42]
[358931040,1745553058324,-216.14,0.000465,42]
[358931041,1745553058334,-216.14,0.000465,42]
[358931042,1745553058345,-216.14,0.000465,42]
[358931043,1745553058355,-216.14,0.000465,42]
[358931044,1745553058364,-216.14,0.000465,42]
[358931045,1745553058373,-216.14,0.000465,42]
[358931046,1745553058383,-216.14,0.000465,42]
[358931047,1745553058393,-216.14,0.000465,42]
[358931048,1745553058402,-216.14,0.000465,42]
[358931049,1745553058418,-216.14,0.000465,42]
[358931050,1745553058428,-216.14,0.000465,42]
[358931051,1745553058438,-216.14,0.000465,42]
[358931052,1745553058448,-216.14,0.000465,42]
[358931053,1745553058457,-216.14,0.000465,42]
[358931054,1745553058468,-216.14,0.000465,42]
[358931055,1745553058478,-150.0,0.00046547,3]
[358931056,1745553058489,-1330.55,0.00046575,120]
[358931057,1745553058499,-175.498221,0.00046575,14]
[358931058,1745553058510,-175.498221,0.00046575,14]
[358931059,1745553058519,-175.498221,0.00046575,14]
[358931060,1745553058529,-175.498221,0.00046575,14]
[358931061,1745553058540,-175.498221,0.00046575,14]
[358931062,1745553058550,-175.498221,0.00046575,14]